Workbook

Sheet 1-3 ГОДА
A1: 13 день на 26.11.2025
A2: МОУ детский сад № 320 Ежеденевное 20-ти дневное меню ( Зима-осень ) для детей дошкольного возраста 1-3 лет, 12 часового режима функционирования
A3: Прием пищи, наименование блюда | B3: Масса порции | C3: Пищевые вещества | F3: Энергети-ческая ценность, ккал
C4: Белки, г | D4: Жиры, г | E4: Углеводы, г
A5: Завтрак
A6: КАША ЖИДКАЯ ( пшеничная ) ТТК № 105 | B6: 150 | C6: 7.0 | D6: 3.5 | E6: 29.1 | F6: 175.1
A7: ЧАЙ С МОЛОКОМ ИЛИ СЛИВКАМИ № 394 | B7: 160 | C7: 2.8 | D7: 2.4 | E7: 9.0 | F7: 81.3
A8: Батон | B8: 50 | C8: 3.8 | D8: 1.5 | E8: 25.7 | F8: 131.0
A10: ИТОГО ЗА ЗАВТРАК | B10: 360 | C10: =SUM(C6:C9) -> 13.6 | D10: =SUM(D6:D9) -> 7.4 | E10: =SUM(E6:E9) -> 63.8 | F10: =SUM(F6:F9) -> 387.4
A11: II Завтрак
A12: СОК ЯБЛОЧНЫЙ 399 | B12: 180 | C12: 0.9 | D12: 0.2 | E12: 17.7 | F12: 75.1
A13: ИТОГО ЗА 2-й ЗАВТРАК | B13: =SUM(B12) -> 180 | C13: =SUM(C12) -> 0.9 | D13: =SUM(D12) -> 0.2 | E13: =SUM(E12) -> 17.7 | F13: =SUM(F12) -> 75.1
A14: Обед
A15: ОГУРЕЦ СВЕЖИЙ | B15: 30 | C15: 0.2 | D15: 0 | E15: 0.8 | F15: 4.2
A16: СУП С МАКАРОННЫМИ ИЗДЕЛИЯМИ НА БУЛЬОНЕ ТТК № 88 | B16: 150 | C16: 2.3 | D16: 1.9 | E16: 12.1 | F16: 74.2
A17: ТЕФТЕЛИ С СОУСОМ ( ГОВЯДИНА) ТТК № 65 | B17: 50/30 | C17: 6.6 | D17: 7.8 | E17: 15.2 | F17: 143.9
A18: КАПУСТА ТУШЕНАЯ № 336 | B18: 120 | C18: 2.7 | D18: 4.5 | E18: 11.5 | F18: 98.6
A19: КОМПОТ ИЗ СУШЕННЫХ ФРУКТОВ № 376 | B19: 150 | C19: 0.0 | D19: 0.0 | E19: 11.6 | F19: 46.5
A20: ХЛЕБ РЖАНОЙ | B20: 40 | C20: 2.6 | D20: 0.4 | E20: 17.0 | F20: 81.6
A21: ХЛЕБ ПШЕНИЧНЫЙ | B21: 20 | C21: 1.5 | D21: 0.1 | E21: 9.7 | F21: 46.0
A22: ИТОГО ЗА ОБЕД | B22: 590 | C22: 15.9 | D22: 14.7 | E22: 78.2 | F22: 494.7
A23: Полдник
A24: СУФЛЕ ИЗ РЫБЫ ТТК № 74 | B24: 50 | C24: 6.5 | D24: 8.2 | E24: 2.1 | F24: 72.7
A25: каша рассыпчатая с овощами (рисовая) | B25: 120 | C25: 2.4 | D25: 3.8 | E25: 14.6 | F25: 171.1
A26: ЧАЙ С САХАРОМ, ВАРЕНЬЕМ, ДЖЕМОМ, МЕДОМ, ПОВИДЛОМ № 392 | B26: 180/10 | C26: 0.1 | D26: 0.0 | E26: 9.8 | F26: 39.4
A27: ХЛЕБ ПШЕНИЧНЫЙ | B27: 20 | C27: 1.5 | D27: 0.1 | E27: 9.7 | F27: 46.0
A28: БУЛОЧКА веснушка № 473 | B28: 50 | C28: 3.5 | D28: 5.3 | E28: 26.8 | F28: 160.9
A29: ИТОГО ЗА ПОЛДНИК | B29: 430 | C29: =SUM(C24:C28) -> 14.0 | D29: =SUM(D24:D28) -> 17.4 | E29: 63.3 | F29: 490.1
A30: Всего за день: | C30: =SUM(C29+C22+C13+C10) -> 44.4 | D30: =SUM(D29+D22+D13+D10) -> 39.7 | E30: =SUM(E29+E22+E13+E10) -> 223.0 | F30: =SUM(F29+F22+F13+F10) -> 1,447.3

Sheet 3-7 ЛЕТ
A1: 13 день на 26.11.2025
A2: МОУ детский сад № 320 Ежеденевное 20-ти дневное меню ( Зима - осень) для детей дошкольного возраста 3-7 лет, 12 часового режима функционирования
A3: Прием пищи, наименование блюда | B3: Масса порции | C3: Пищевые вещества | F3: Энергети-ческая ценность, ккал
C4: Белки, г | D4: Жиры, г | E4: Углеводы, г
A5: Завтрак
A6: КАША ЖИДКАЯ ( ПШЕНИЧНАЯ ) ТТК № 105 | B6: 180 | C6: 8.3 | D6: 4.2 | E6: 35.7 | F6: 213.4
A7: ЧАЙ С МОЛОКОМ ИЛИ СЛИВКАМИ № 394 | B7: 180 | C7: 2.7 | D7: 2.3 | E7: 14.0 | F7: 87.6
A8: БУТЕРБРОД С ДЖЕМОМ ИЛИ ПОВИДЛОМ № 2 | B8: 30/5/20 | C8: 2.3 | D8: 3.7 | E8: 27.4 | F8: 156.7
A10: ИТОГО ЗА ЗАВТРАК | B10: 415 | C10: 13.3 | D10: =SUM(D6:D9) -> 10.2 | E10: =SUM(E6:E9) -> 77.1 | F10: =SUM(F6:F9) -> 457.7
A11: II Завтрак
A12: СОК ЯБЛОЧНЫЙ № 399 | B12: 200 | C12: 1.0 | D12: 0.2 | E12: 19.6 | F12: 83.4
A13: ИТОГО ЗА 2-й ЗАВТРАК | B13: 200 | C13: =SUM(C12) -> 1.0 | D13: =SUM(D12) -> 0.2 | E13: =SUM(E12) -> 19.6 | F13: =SUM(F12) -> 83.4
A14: Обед
A15: ОГУРЕЦ СВЕЖИЙ | B15: 50 | C15: 0.4 | D15: 0.1 | E15: 1.3 | F15: 7
A16: СУП С МАКАРОННЫМИ ИЗДЕЛИЯМИ НА БУЛЬОНЕ ТТК № 88 | B16: 180 | C16: 2.7 | D16: 2.1 | E16: 14.5 | F16: 89.2
A17: ТЕФТЕЛИ С СОУСОМ ( ГОВЯДИНА) ТТК № 65 | B17: 70/30 | C17: 10.3 | D17: 12.4 | E17: 11.0 | F17: 205.3
A18: КАПУСТА ТУШЕНАЯ № 336 | B18: 130 | C18: 2.9 | D18: 4.9 | E18: 12.5 | F18: 106.9
A19: КОМПОТ ИЗ СУШЕНЫХ ФРУКТОВ № 376 | B19: 180 | C19: 0.0 | D19: 0.0 | E19: 14.0 | F19: 55.8
A20: ХЛЕБ РЖАНОЙ | B20: 50 | C20: 3.3 | D20: 0.4 | E20: 21.2 | F20: 102.0
A21: ХЛЕБ ПШЕНИЧНЫЙ | B21: 30 | C21: 2.3 | D21: 0.2 | E21: 15.1 | F21: 71.0
A22: ИТОГО ЗА ОБЕД | B22: 720 | C22: 21.9 | D22: 20.1 | E22: 89.2 | F22: 636.7
A23: уплотнённый полдник
A24: СУФЛЕ ИЗ РЫБЫ ТТК № 74 | B24: 70 | C24: 11.8 | D24: 6.6 | E24: 3.1 | F24: 122.6
A25: КАША РАССЫПЧАТАЯ С ОВОЩАМИ (РИСОВАЯ) | B25: 150 | C25: 2.9 | D25: 4.1 | E25: 23.8 | F25: 214.1
A26: ЧАЙ С САХАРОМ, ВАРЕНЬЕМ, ДЖЕМОМ, МЕДОМ, ПОВИДЛОМ № 392 | B26: 190/10 | C26: 0.1 | D26: 0.0 | E26: 9.8 | F26: 39.4
A27: ХЛЕБ ПШЕНИЧНЫЙ | B27: 30 | C27: 2.3 | D27: 0.2 | E27: 15.1 | F27: 71.0
A28: БУЛОЧКА веснушка | B28: 50 | C28: 4.0 | D28: 3.0 | E28: 29.6 | F28: 160.9
A29: ИТОГО ЗА ПОЛДНИК | B29: 500 | C29: 20.9 | D29: 16.8 | E29: 73.1 | F29: 608.0
A30: Всего за день: | C30: =SUM(C29+C22+C13+C10) -> 57.1 | D30: =SUM(D29+D22+D13+D10) -> 47.3 | E30: =SUM(E29+E22+E13+E10) -> 259.0 | F30: =SUM(F29+F22+F13+F10) -> 1,785.8

Sheet Лист3
